fUSD/lending_fUSD_20250804
["ID","MTS","AMOUNT","RATE_DAILY","PERIOD"]
[377204030,1754290318454,-1696.14,0.00047121,120]
[377204031,1754290318463,-400.0,0.00047121,120]
[377204032,1754290318472,-463.73,0.00047121,120]
[377204033,1754290318482,-535.60610937,0.00047121,120]
[377204034,1754290318492,-563.54,0.00047121,120]
[377204035,1754290318501,-578.38,0.00047121,120]
[377204036,1754290318511,-702.4,0.00047121,120]
[377204037,1754290318521,-1563.75,0.00047121,120]
[377204038,1754290318530,-703.1,0.00047121,120]
[377204039,1754290318540,-452.2,0.00047121,120]
[377204040,1754290318549,-151.0,0.00047121,14]
[377204041,1754290318558,-400.0,0.00047121,120]
[377204042,1754290318568,-901.45,0.00047121,120]
[377204043,1754290318577,-400.0,0.00047121,120]
[377204044,1754290318588,-980.37,0.00047121,120]
[377204045,1754290318598,-400.0,0.00047121,120]
[377204046,1754290318607,-400.0,0.00047121,120]
[377204047,1754290318617,-2641.33,0.00047121,120]
[377204048,1754290318627,-400.0,0.00047121,120]
[377204049,1754290318636,-1192.35,0.00047121,120]
[377204050,1754290318646,-400.0,0.00047121,120]
[377204051,1754290318656,-1018.77,0.00047121,120]
[377204052,1754290318665,-400.0,0.00047121,120]
[377204053,1754290318678,-151.0,0.00047121,14]
[377204054,1754290318687,-400.0,0.00047121,120]
[377204055,1754290318697,-151.0,0.00047121,14]
[377204056,1754290318706,-967.38,0.00047121,120]
[377204057,1754290318716,-400.0,0.00047121,120]
[377204058,1754290318727,-400.0,0.00047121,120]
[377204059,1754290318738,-400.0,0.00047121,120]
[377204060,1754290318748,-987.9,0.00047121,120]
[377204061,1754290318760,-400.0,0.00047121,120]
[377204062,1754290318771,-400.0,0.00047121,120]
[377204063,1754290318780,-177.685595,0.00047121,14]
[377204064,1754290318789,-177.685595,0.00047121,14]
[377204065,1754290318799,-400.0,0.00047121,120]
[377204066,1754290318809,-400.0,0.00047121,120]
[377204067,1754290318819,-400.0,0.00047121,120]
[377204068,1754290318828,-400.0,0.00047121,120]
[377204069,1754290318838,-400.0,0.00047121,120]
[377204070,1754290318848,-151.0,0.00047121,14]
[377204071,1754290318857,-151.0,0.00047121,14]
[377204072,1754290318867,-177.685595,0.00047121,14]
[377204073,1754290318877,-177.685595,0.00047121,14]
[377204074,1754290318886,-422.00163037,0.00047121,120]
[377204075,1754290318896,-981.56,0.00047121,120]
[377204076,1754290318906,-444.77,0.00047121,120]
[377204077,1754290318915,-400.0,0.00047121,120]
[377204078,1754290318925,-400.0,0.00047121,120]
[377204079,1754290318935,-400.0,0.00047121,120]
[377204080,1754290318944,-807.78,0.00047121,120]
[377204081,1754290318953,-1040.4,0.00047121,120]
[377204082,1754290318963,-468.45,0.00047121,120]
[377204083,1754290318974,-2248.33,0.00047121,120]
[377204084,1754290318983,-400.0,0.00047121,120]
[377204085,1754290318993,-401.66445915,0.00047121,120]
[377204086,1754290319003,-243.156381,0.00047121,14]
[377204087,1754290319012,-1636.65,0.00047121,120]
[377204088,1754290319022,-401.83183066,0.00047121,120]
[377204089,1754290319032,-400.0,0.00047121,120]
[377204090,1754290319042,-400.0,0.00047121,120]
[377204091,1754290319052,-965.01,0.00047121,120]
[377204092,1754290319061,-403.12937492,0.00047121,120]
[377204093,1754290319071,-151.0,0.00047121,14]
[377204094,1754290319081,-151.0,0.00047121,14]
[377204095,1754290319092,-1321.39,0.00047121,120]
[377204096,1754290319102,-400.0,0.00047121,120]
[377204097,1754290319112,-151.0,0.00047121,14]
[377204098,1754290319122,-604.76,0.00047121,120]
[377204099,1754290319132,-151.0,0.00047121,14]
[377204100,1754290319142,-400.0,0.00047121,120]
[377204101,1754290319152,-151.0,0.00047121,14]
[377204102,1754290319161,-400.0,0.00047121,120]
[377204103,1754290319172,-271.980692,0.00047121,14]
[377204104,1754290319182,-1025.37,0.00047121,120]
[377204105,1754290319191,-1457.38,0.00047121,120]
[377204106,1754290319201,-852.5,0.00047121,120]
[377204107,1754290319210,-271.980692,0.00047121,14]
[377204108,1754290319220,-1520.01,0.00047121,120]
[377204109,1754290319230,-607.36,0.00047121,120]
[377204110,1754290319240,-400.0,0.00047121,120]
[377204111,1754290319249,-400.0,0.00047121,120]
[377204112,1754290319259,-834.0,0.00047121,120]
[377204113,1754290319269,-650.45,0.00047121,120]
[377204114,1754290319278,-666.91,0.00047121,120]
[377204115,1754290319287,-400.0,0.00047121,120]
[377204116,1754290319297,-400.0,0.00047121,120]
[377204117,1754290319307,-531.65,0.00047121,120]
[377204118,1754290319318,-1125.68,0.00047121,120]
[377204119,1754290319330,-400.0,0.00047121,120]
[377204120,1754290319341,-151.0,0.00047121,14]
[377204121,1754290319350,-151.0,0.00047121,14]
[377204122,1754290319361,-609.72,0.00047121,120]
[377204123,1754290319370,-500.0,0.00047121,120]
[377204124,1754290319380,-400.0,0.00047121,120]
[377204125,1754290319391,-400.0,0.00047121,120]
[377204126,1754290319401,-434.85,0.00047121,120]
[377204127,1754290319413,-401.37314468,0.00047121,120]
[377204128,1754290319423,-400.0,0.00047121,120]
[377204129,1754290319434,-500.0,0.00047121,120]
[377204130,1754290319444,-1398.86,0.00047121,120]
[377204131,1754290319453,-919.11,0.00047121,120]
[377204132,1754290319463,-1014.5,0.00047121,120]
[377204133,1754290319474,-400.0,0.00047121,120]
[377204134,1754290319484,-668.1,0.00047121,60]
[377204135,1754290319495,-151.0,0.00047121,14]
[377204136,1754290319505,-400.0,0.00047121,120]
[377204137,1754290319515,-400.0,0.00047121,120]
[377204138,1754290319527,-400.0,0.00047121,120]
[377204139,1754290319538,-151.0,0.00047121,14]
[377204140,1754290319548,-699.35,0.00047121,120]
[377204141,1754290319559,-1553.465892,0.00047121,14]
[377204142,1754290319571,-421.68,0.00047121,120]
[377204143,1754290319581,-1553.465892,0.00047121,14]
[377204144,1754290319591,-684.22,0.00047121,120]
[377204145,1754290319601,-400.0,0.00047121,120]
[377204146,1754290319610,-400.0,0.00047121,120]
[377204147,1754290319620,-1119.51,0.00047121,120]
[377204148,1754290319629,-1124.99,0.00047121,120]
[377204149,1754290319639,-400.0,0.00047121,120]
[377204150,1754290319649,-719.07,0.00047121,120]
[377204151,1754290319658,-400.98727849,0.00047121,120]
[377204152,1754290319668,-401.55746357,0.00047121,120]
[377204153,1754290319681,-400.0,0.00047121,120]
[377204154,1754290319690,-583.14,0.00047121,120]
[377204155,1754290319700,-400.0,0.00047121,120]
[377204156,1754290319710,-757.99,0.00047121,120]
[377204157,1754290319721,-400.0,0.00047121,120]
[377204158,1754290319730,-1193.25,0.00047121,120]
[377204159,1754290319739,-400.0,0.00047121,120]
[377204160,1754290319749,-767.2,0.00047121,120]
[377204161,1754290319759,-493.62,0.00047121,120]
[377204162,1754290319769,-226.969151,0.00047121,14]
[377204163,1754290319779,-226.969151,0.00047121,14]
[377204164,1754290319788,-400.0,0.00047121,120]
[377204165,1754290319798,-400.0,0.00047121,120]
[377204166,1754290319807,-400.0,0.00047121,120]
[377204167,1754290319817,-226.969151,0.00047121,14]
[377204168,1754290319827,-226.969151,0.00047121,14]
[377204169,1754290319839,-1684.73,0.00047121,120]
[377204170,1754290319849,-400.0,0.00047121,120]
[377204171,1754290319858,-400.0,0.00047121,120]
[377204172,1754290319868,-512.52968323,0.00047121,120]
[377204173,1754290319877,-642.85,0.00047121,120]
[377204174,1754290319890,-1144.48,0.00047121,120]
[377204175,1754290319899,-436.81,0.00047121,120]
[377204176,1754290319909,-400.0,0.00047121,120]
[377204177,1754290319919,-502.76588868,0.00047121,120]
[377204178,1754290319928,-497.01,0.00047121,120]
[377204179,1754290319938,-759.368077,0.00047121,14]
[377204180,1754290319947,-1385.55,0.00047121,120]
[377204181,1754290319957,-400.0,0.00047121,120]
[377204182,1754290319966,-400.0,0.00047121,120]
[377204183,1754290319975,-759.368077,0.00047121,14]
[377204184,1754290319984,-711.19,0.00047121,120]
[377204185,1754290319994,-1373.04,0.00047121,120]
[377204186,1754290320004,-400.0,0.00047121,120]
[377204187,1754290320014,-400.0,0.00047121,120]
[377204188,1754290320024,-400.0,0.00047121,120]
[377204189,1754290320034,-400.0,0.00047121,120]
[377204190,1754290320044,-1677.71,0.00047121,120]
[377204191,1754290320055,-400.0,0.00047121,120]
[377204192,1754290320064,-400.0,0.00047121,120]
[377204193,1754290320074,-1070.14,0.00047121,120]
[377204194,1754290320084,-400.0,0.00047121,120]
[377204195,1754290320095,-1221.48,0.00047121,120]
[377204196,1754290320105,-400.0,0.00047121,120]
[377204197,1754290320115,-506.15,0.00047121,120]
[377204198,1754290320125,-400.0,0.00047121,120]
[377204199,1754290320134,-400.0,0.00047121,120]
[377204200,1754290320144,-151.0,0.00047121,14]
[377204201,1754290320153,-400.0,0.00047121,120]
[377204202,1754290320163,-813.29,0.00047121,120]
[377204203,1754290320173,-400.0,0.00047121,120]
[377204204,1754290320183,-1157.7,0.00047121,120]
[377204205,1754290320192,-400.0,0.00047121,120]
[377204206,1754290320202,-400.0,0.00047121,120]
[377204207,1754290320212,-400.0,0.00047121,120]
[377204208,1754290320222,-400.0,0.00047121,120]
[377204209,1754290320232,-400.0,0.00047121,120]
[377204210,1754290320242,-502.19,0.00047121,120]
[377204211,1754290320252,-400.0,0.00047121,120]
[377204212,1754290320261,-400.0,0.00047121,120]
[377204213,1754290320272,-402.46708451,0.00047121,120]
[377204214,1754290320282,-400.0,0.00047121,120]
[377204215,1754290320292,-400.0,0.00047121,120]
[377204216,1754290320302,-400.0,0.00047121,120]
[377204217,1754290320312,-440.08,0.00047121,120]
[377204218,1754290320322,-402.27432025,0.00047121,120]
[377204219,1754290320331,-1186.51,0.00047121,120]
[377204220,1754290320341,-577.15,0.00047121,120]
[377204221,1754290320351,-400.0,0.00047121,120]
[377204222,1754290320361,-400.0,0.00047121,120]
[377204223,1754290320370,-151.0,0.00047121,14]
[377204224,1754290320380,-1282.55,0.00047121,120]
[377204225,1754290320390,-400.0,0.00047121,120]
[377204226,1754290320400,-400.0,0.00047121,120]
[377204227,1754290320409,-400.0,0.00047121,120]
[377204228,1754290320419,-400.0,0.00047121,120]
[377204229,1754290320428,-428.3,0.00047121,120]
[377204230,1754290320438,-650.0,0.00047121,120]
[377204231,1754290320448,-400.0,0.00047121,120]
[377204232,1754290320458,-400.0,0.00047121,120]
[377204233,1754290320468,-155.47109,0.00047121,14]
[377204234,1754290320478,-943.82,0.00047121,120]
[377204235,1754290320487,-400.0,0.00047121,120]
[377204236,1754290320506,-400.0,0.00047121,120]
[377204237,1754290320518,-151.0,0.00047121,14]
[377204238,1754290320528,-879.395519,0.00047121,14]
[377204239,1754290320538,-400.0,0.00047121,120]
[377204240,1754290320549,-879.395519,0.00047121,14]
[377204241,1754290320558,-400.0,0.00047121,120]
[377204242,1754290320568,-806.05,0.00047121,120]
[377204243,1754290320578,-151.0,0.00047121,14]
[377204244,1754290320587,-952.84,0.00047121,120]
[377204245,1754290320598,-440.282274,0.00047121,14]
[377204246,1754290320608,-151.0,0.00047122,14]
[377204247,1754290320620,-151.673348,0.00047122,14]
[377204248,1754290320632,-151.0,0.00047122,14]
[377204249,1754290320643,-151.0,0.00047122,14]
[377204250,1754290320652,-247.687436,0.00047122,14]
[377204251,1754290320663,-247.687436,0.00047122,14]
[377204252,1754290320675,-151.0,0.00047122,14]
[377204253,1754290320686,-316.070445,0.00047122,14]
[377204254,1754290320696,-316.070445,0.00047122,14]
[377204255,1754290320706,-1100.823876,0.00047122,14]
[377204256,1754290320717,-1100.823876,0.00047122,14]
[377204257,1754290320873,-400.0,0.00047122,120]
[377204258,1754290320883,-400.0,0.00047122,120]
[377204259,1754290320893,-400.0,0.00047122,120]
[377204260,1754290320907,-335.424605,0.00047122,14]
[377204261,1754290320917,-400.0,0.00047122,120]
[377204262,1754290320927,-335.424605,0.00047122,14]
[377204263,1754290320937,-400.0,0.00047122,120]
[377204264,1754290320948,-400.0,0.00047122,120]
[377204265,1754290320958,-400.90493414,0.00047122,5]
[377204266,1754290320968,-400.0,0.00047122,120]
[377204267,1754290320977,-345.08218267,0.00047122,120]
[377204268,1754290320987,-400.0,0.00047122,120]
[377204269,1754290320997,-400.0,0.00047122,120]
[377204270,1754290321007,-504.24970204,0.00047122,120]
[377204271,1754290321018,-151.0,0.00047122,14]
[377204272,1754290321028,-158.350387,0.00047122,14]
[377204273,1754290321039,-2268.23,0.00047122,120]
[377204274,1754290321050,-606.53,0.00047122,120]
[377204275,1754290321063,-400.0,0.00047122,120]
[377204276,1754290321072,-402.92,0.00047122,120]
[377204277,1754290321082,-400.0,0.00047122,120]
[377204278,1754290321092,-1022.63,0.00047122,120]
[377204279,1754290321102,-271.980692,0.00047122,14]
[377204280,1754290321111,-271.980692,0.00047122,14]
[377204281,1754290321121,-400.0,0.00047122,120]
[377204282,1754290321131,-1517.31,0.00047122,120]
[377204283,1754290321141,-2719.87,0.00047122,118]
[377204284,1754290321150,-1553.465892,0.00047122,14]
[377204285,1754290321161,-1553.465892,0.00047122,14]
[377204286,1754290321171,-400.0,0.00047122,120]
[377204287,1754290321180,-1594.58,0.00047122,120]
[377204288,1754290321190,-759.368077,0.00047122,14]
[377204289,1754290321200,-7975.55,0.00047122,120]
[377204290,1754290321210,-759.368077,0.00047122,14]
[377204291,1754290321220,-151.0,0.00047122,14]
[377204292,1754290321229,-614.98,0.00047122,120]
[377204293,1754290321239,-151.0,0.00047122,14]
[377204294,1754290321248,-2272.74811661,0.00047123,61]
[377204295,1754290321258,-10655.72090544,0.00047123,31]
[377204296,1754290321268,-400.0,0.00047123,120]
[377204297,1754290321278,-400.0,0.00047123,120]
[377204298,1754290321288,-400.0,0.00047123,120]
[377204299,1754290321297,-400.0,0.00047123,120]
[377204300,1754290321307,-1614.75,0.00047123,120]
[377204301,1754290321316,-833.14,0.00047123,120]
[377204302,1754290321326,-400.0,0.00047123,120]
[377204303,1754290321335,-400.0,0.00047123,120]
[377204304,1754290321345,-494.2,0.00047123,120]
[377204305,1754290321359,-400.0,0.00047123,120]
[377204306,1754290321369,-519.35,0.00047123,120]
[377204307,1754290321379,-400.0,0.00047123,120]
[377204308,1754290321389,-519.18,0.00047123,120]
[377204309,1754290321399,-1160.29,0.00047123,120]
[377204310,1754290321408,-400.0,0.00047123,120]
[377204311,1754290321418,-400.0,0.00047123,120]
[377204312,1754290321428,-400.0,0.00047123,120]
[377204313,1754290321438,-1286.5,0.00047123,120]
[377204314,1754290321448,-402.46452705,0.00047123,120]
[377204315,1754290321457,-402.40094038,0.00047123,120]
[377204316,1754290321467,-400.0,0.00047123,120]
[377204317,1754290321477,-873.2,0.00047123,120]
[377204318,1754290321487,-154.82900023,0.00047123,120]
[377204319,1754290321497,-1631.73,0.00047123,120]
[377204320,1754290321506,-151.0,0.00047123,14]
[377204321,1754290321516,-1028.43,0.00047123,120]
[377204322,1754290321526,-544.09,0.00047123,120]
[377204323,1754290321535,-400.0,0.00047123,120]
[377204324,1754290321545,-400.0,0.00047123,120]
[377204325,1754290321555,-986.53,0.00047123,120]
[377204326,1754290321565,-400.0,0.00047123,120]
[377204327,1754290321575,-152.078767,0.00047123,14]
[377204328,1754290321584,-400.0,0.00047123,120]
[377204329,1754290321595,-1075.35,0.00047123,120]
[377204330,1754290321606,-574.06,0.00047123,120]
[377204331,1754290321615,-1000.0,0.00047123,120]
[377204332,1754290321625,-719.27,0.00047123,30]
[377204333,1754290321635,-643.54,0.00047123,120]
[377204334,1754290321645,-400.0,0.00047123,120]
[377204335,1754290321655,-1004.04,0.00047123,120]
[377204336,1754290321665,-403.78056741,0.00047123,120]
[377204337,1754290321679,-402.85519366,0.00047123,120]
[377204338,1754290321689,-400.0,0.00047123,120]
[377204339,1754290321700,-400.0,0.00047123,120]
[377204340,1754290321710,-400.0,0.00047123,120]
[377204341,1754290321722,-898.59,0.00047123,120]
[377204342,1754290321732,-400.0,0.00047123,120]
[377204343,1754290321742,-400.0,0.00047123,120]
[377204344,1754290321753,-1039.58,0.00047123,120]
[377204345,1754290321764,-400.0,0.00047123,120]
[377204346,1754290321774,-400.0,0.00047123,120]
[377204347,1754290321784,-400.0,0.00047123,120]
[377204348,1754290321794,-400.0,0.00047123,120]
[377204349,1754290321804,-400.0,0.00047123,120]
[377204350,1754290321813,-665.08,0.00047123,120]
[377204351,1754290321823,-400.0,0.00047123,120]
[377204352,1754290321833,-257.87177236,0.00047123,120]
[377204353,1754290321844,-151.0,0.00047123,14]
[377204354,1754290321854,-826.15,0.00047123,120]
[377204355,1754290321864,-1346.51,0.00047123,120]
[377204356,1754290321874,-454.54607486,0.00047123,120]
[377204357,1754290321884,-400.0,0.00047123,120]
[377204358,1754290321894,-466.13,0.00047123,120]
[377204359,1754290321904,-653.67,0.00047123,120]
[377204360,1754290321914,-400.0,0.00047123,120]
[377204361,1754290321924,-1027.78,0.00047123,120]
[377204362,1754290321934,-604.06,0.00047123,120]
[377204363,1754290321944,-540.21132589,0.00047123,120]
[377204364,1754290321954,-1589.09,0.00047123,120]
[377204365,1754290321963,-1584.22,0.00047123,120]
[377204366,1754290321973,-1231.52,0.00047123,120]
[377204367,1754290321983,-400.0,0.00047123,120]
[377204368,1754290321993,-1206.73,0.00047123,120]
[377204369,1754290322003,-400.0,0.00047123,120]
[377204370,1754290322013,-400.0,0.00047123,120]
[377204371,1754290322022,-274.78759756,0.00047123,120]
[377204372,1754290322032,-400.0,0.00047123,120]
[377204373,1754290322042,-400.0,0.00047123,120]
[377204374,1754290322051,-400.0,0.00047123,120]
[377204375,1754290322061,-931.11,0.00047123,120]
[377204376,1754290322071,-400.0,0.00047123,120]
[377204377,1754290322080,-400.0,0.00047123,120]
[377204378,1754290322091,-400.0,0.00047123,120]
[377204379,1754290322101,-400.0,0.00047123,120]
[377204380,1754290322110,-400.0,0.00047123,120]
[377204381,1754290322120,-402.28251395,0.00047123,120]
[377204382,1754290322130,-151.0,0.00047123,14]
[377204383,1754290322139,-796.71,0.00047123,120]
[377204384,1754290322149,-400.0,0.00047123,120]
[377204385,1754290322159,-152.614647,0.00047123,14]
[377204386,1754290322169,-1101.07,0.00047123,120]
[377204388,1754290322181,-400.0,0.00047123,120]
[377204389,1754290322191,-400.0,0.00047123,120]
[377204390,1754290322200,-523.21,0.00047123,120]
[377204391,1754290322210,-400.0,0.00047123,120]
[377204392,1754290322220,-750.21,0.00047123,120]
[377204393,1754290322237,-509.2,0.00047123,120]
[377204394,1754290322247,-400.0,0.00047123,120]
[377204395,1754290322257,-400.0,0.00047123,120]
[377204396,1754290322267,-400.0,0.00047123,120]
[377204397,1754290322277,-151.0,0.00047123,14]
[377204398,1754290322287,-151.0,0.00047123,14]
[377204399,1754290322296,-1170.49,0.00047123,120]
[377204400,1754290322307,-400.0,0.00047123,120]
[377204401,1754290322318,-400.0,0.00047123,120]
[377204402,1754290322328,-700.78,0.00047123,120]
[377204403,1754290322338,-400.0,0.00047123,120]
[377204404,1754290322352,-506.67,0.00047123,120]
[377204405,1754290322362,-400.0,0.00047123,120]
[377204406,1754290322371,-400.0,0.00047123,120]
[377204407,1754290322381,-400.0,0.00047123,120]
[377204408,1754290322391,-881.14,0.00047123,120]
[377204409,1754290322401,-742.85,0.00047123,120]
[377204410,1754290322411,-400.0,0.00047123,120]
[377204411,1754290322420,-454.17,0.00047123,120]
[377204412,1754290322430,-1865.77,0.00047123,120]
[377204413,1754290322440,-564.64,0.00047123,60]
[377204414,1754290322449,-400.0,0.00047123,120]
[377204415,1754290322459,-1526.94,0.00047123,120]
[377204416,1754290322469,-400.0,0.00047123,120]
[377204417,1754290322478,-400.0,0.00047123,120]
[377204418,1754290322487,-400.0,0.00047123,120]
[377204419,1754290322497,-400.0,0.00047123,120]
[377204420,1754290322507,-151.0,0.00047123,14]
[377204421,1754290322516,-400.0,0.00047123,120]
[377204423,1754290322526,-402.92804753,0.00047123,120]
[377204424,1754290322536,-586.97,0.00047123,120]
[377204425,1754290322546,-400.0,0.00047123,120]
[377204426,1754290322556,-828.91,0.00047123,120]
[377204427,1754290322565,-911.28,0.00047123,120]
[377204428,1754290322575,-1618.43,0.00047123,120]
[377204429,1754290322585,-400.0,0.00047123,120]
[377204430,1754290322599,-1313.84,0.00047123,120]
[377204431,1754290322609,-1058.62,0.00047123,120]
[377204432,1754290322619,-1424.52,0.00047123,120]
[377204433,1754290322629,-1224.73,0.00047123,120]
[377204434,1754290322638,-400.0,0.00047123,120]
[377204435,1754290322649,-461.975391,0.00047123,14]
[377204436,1754290322659,-400.0,0.00047123,120]
[377204437,1754290322669,-460.08,0.00047123,120]
[377204438,1754290322683,-461.975391,0.00047123,14]
[377204439,1754290322693,-766.53,0.00047123,120]
[377204440,1754290322703,-628.33,0.00047123,120]
[377204441,1754290322713,-1442.12,0.00047123,120]
[377204442,1754290322723,-400.0,0.00047123,120]
[377204443,1754290322733,-497.47,0.00047123,120]
[377204444,1754290322742,-400.0,0.00047123,120]
[377204445,1754290322754,-400.0,0.00047123,120]
[377204446,1754290322765,-151.0,0.00047123,14]
[377204447,1754290322775,-400.0,0.00047123,120]
[377204448,1754290322784,-1505.72,0.00047123,120]
[377204449,1754290322796,-1302.85,0.00047123,120]
[377204450,1754290322806,-400.0,0.00047123,120]
[377204451,1754290322816,-1326.41,0.00047123,120]
[377204452,1754290322826,-402.50667933,0.00047123,120]
[377204453,1754290322836,-400.0,0.00047123,120]
[377204454,1754290322855,-296.71633771,0.00047123,120]
[377204455,1754290322865,-1051.27,0.00047123,120]
[377204456,1754290322874,-951.87,0.00047123,120]
[377204457,1754290322883,-403.8321519,0.00047123,120]
[377204458,1754290322894,-866.05,0.00047123,120]
[377204459,1754290322903,-889.91,0.00047123,120]
[377204460,1754290322912,-1116.81,0.00047123,120]
[377204461,1754290322922,-802.17,0.00047123,120]
[377204462,1754290322931,-1709.6,0.00047123,120]
[377204463,1754290322940,-484.12799608,0.00047123,120]
[377204464,1754290322950,-400.0,0.00047123,120]
[377204465,1754290322959,-400.0,0.00047123,120]
[377204466,1754290322969,-400.0,0.00047123,120]
[377204467,1754290322978,-400.0,0.00047123,120]
[377204468,1754290322988,-678.02,0.00047123,120]
[377204469,1754290322997,-449.14444149,0.00047123,120]
[377204470,1754290323007,-400.0,0.00047123,120]
[377204471,1754290323016,-400.0,0.00047123,120]
[377204472,1754290323026,-502.8,0.00047123,120]
[377204473,1754290323035,-1003.98,0.00047123,120]
[377204474,1754290323045,-400.0,0.00047123,120]
[377204475,1754290323055,-400.0,0.00047123,120]
[377204476,1754290323066,-400.0,0.00047123,120]
[377204477,1754290323076,-400.0,0.00047123,120]
[377204478,1754290323085,-733.91,0.00047123,120]
[377204479,1754290323098,-425.44358747,0.00047123,120]
[377204480,1754290323112,-400.0,0.00047123,120]
[377204481,1754290323122,-402.68748868,0.00047123,120]
[377204482,1754290323132,-400.0,0.00047123,120]
[377204483,1754290323142,-400.0,0.00047123,120]
[377204484,1754290323152,-400.0,0.00047123,120]
[377204485,1754290323161,-401.9995535,0.00047123,120]
[377204486,1754290323171,-164.24616314,0.00047123,120]
[377204487,1754290323182,-520.58,0.00047123,120]
[377204488,1754290323192,-400.0,0.00047123,120]
[377204489,1754290323202,-400.0,0.00047123,120]
[377204490,1754290323212,-400.0,0.00047123,120]
[377204491,1754290323222,-1139.57,0.00047123,120]
[377204492,1754290323232,-400.0,0.00047123,120]
[377204493,1754290323242,-400.0,0.00047123,120]
[377204494,1754290323253,-1564.24,0.00047123,120]
[377204495,1754290323263,-402.27608038,0.00047123,120]
[377204496,1754290323273,-404.74019258,0.00047123,120]
[377204497,1754290323283,-400.0,0.00047123,120]
[377204498,1754290323294,-1642.73,0.00047123,120]
[377204499,1754290323304,-400.0,0.00047123,120]
[377204500,1754290323314,-1812.69,0.00047123,120]
[377204501,1754290323324,-400.0,0.00047123,120]
[377204502,1754290323333,-985.27,0.00047123,120]
[377204503,1754290323343,-476.8,0.00047123,120]
[377204504,1754290323353,-876.43,0.00047123,120]
[377204505,1754290323363,-400.0,0.00047123,120]
[377204506,1754290323373,-1125.47,0.00047123,120]
[377204507,1754290323383,-933.76,0.00047123,120]
[377204508,1754290323393,-400.0,0.00047123,120]
[377204509,1754290323403,-400.0,0.00047123,120]
[377204510,1754290323414,-400.0,0.00047123,120]
[377204511,1754290323424,-976.48,0.00047123,120]
[377204512,1754290323434,-400.0,0.00047123,120]
[377204513,1754290323444,-1567.37,0.00047123,120]
[377204514,1754290323454,-424.16,0.00047123,120]
[377204515,1754290323464,-416.55,0.00047123,120]
[377204516,1754290323474,-500.0,0.00047123,120]
[377204517,1754290323484,-481.83,0.00047123,120]
[377204518,1754290323494,-1650.23,0.00047123,120]
[377204519,1754290323505,-819.44,0.00047123,120]
[377204520,1754290323514,-729.67,0.00047123,120]
[377204521,1754290323524,-400.0,0.00047123,120]
[377204522,1754290323534,-151.0,0.00047123,14]
[377204523,1754290323544,-400.0,0.00047123,120]
[377204524,1754290323554,-1610.82,0.00047123,120]
[377204525,1754290323564,-400.0,0.00047123,120]
[377204526,1754290323573,-427.31,0.00047123,120]
[377204527,1754290323583,-514.04,0.00047123,120]
[377204528,1754290323595,-402.17066249,0.00047123,120]
[377204529,1754290323604,-400.0,0.00047123,120]
[377204530,1754290323614,-1439.84,0.00047123,120]
[377204531,1754290323624,-450.49376405,0.00047123,120]